[Event "Titled Tuesday Blitz January 31 Late 2023"]
[White "Itkis, Boris"]
[Black "Ozates, Tuna"]
[WhiteFideId "1209167"]
[BlackFideId "6354521"]
[WhiteElo "2329"]
[BlackElo "2251"]
[Result "0-1"]
[Round "02"]
[TimeControl "180+2"]
[Date "2023.01.31"]
[WhiteClock "0:00:01"]
[BlackClock "0:00:15"]

1. e4 {[%clk 0:03:00]}  c5 {[%clk 0:02:58]} 2. Nf3 {[%clk 0:03:01]}  e6 {[%clk 0:02:59]} 3. b3 {[%clk 0:02:59]}  Nc6 {[%clk 0:02:57]} 4. Bb2 {[%clk 0:02:59]}  d5 {[%clk 0:02:56]} 5. exd5 {[%clk 0:02:58]}  exd5 {[%clk 0:02:57]} 6. d4 {[%clk 0:02:57]}  Nf6 {[%clk 0:02:55]} 7. Be2 {[%clk 0:02:55]}  Bd6 {[%clk 0:02:49]} 8. O-O {[%clk 0:02:55]}  O-O {[%clk 0:02:49]} 9. dxc5 {[%clk 0:02:55]}  Bxc5 {[%clk 0:02:49]} 10. Ne5 {[%clk 0:02:54]}  Nxe5 {[%clk 0:02:46]} 11. Bxe5 {[%clk 0:02:55]}  Re8 {[%clk 0:02:47]} 12. Bb2 {[%clk 0:02:53]}  Ne4 {[%clk 0:02:39]} 13. Bf3 {[%clk 0:02:50]}  Qh4 {[%clk 0:02:39]} 14. Bd4 {[%clk 0:02:45]}  Bd6 {[%clk 0:02:25]} 15. g3 {[%clk 0:02:34]}  Qh6 {[%clk 0:02:20]} 16. Re1 {[%clk 0:02:23]}  Bf5 {[%clk 0:02:10]} 17. Bg2 {[%clk 0:02:18]}  Rac8 {[%clk 0:02:06]} 18. Nc3 {[%clk 0:01:45]}  Bb4 {[%clk 0:01:53]} 19. Nxe4 {[%clk 0:01:31]}  Bxe1 {[%clk 0:01:50]} 20. Nc5 {[%clk 0:00:34]}  Bb4 {[%clk 0:01:35]} 21. Nd3 {[%clk 0:00:33]}  Ba5 {[%clk 0:01:23]} 22. Bxd5 {[%clk 0:00:31]}  Qd6 {[%clk 0:01:19]} 23. c4 {[%clk 0:00:29]}  Qg6 {[%clk 0:01:15]} 24. Nf4 {[%clk 0:00:28]}  Qh6 {[%clk 0:01:03]} 25. Qf3 {[%clk 0:00:23]}  Re7 {[%clk 0:00:42]} 26. Bxb7 {[%clk 0:00:16]}  Rce8 {[%clk 0:00:41]} 27. Be3 {[%clk 0:00:17]}  Bb6 {[%clk 0:00:25]} 28. Bc6 {[%clk 0:00:15]}  Bd7 {[%clk 0:00:21]} 29. Bxd7 {[%clk 0:00:12]}  Rxe3 {[%clk 0:00:16]} 30. fxe3 {[%clk 0:00:05]}  Rxe3 {[%clk 0:00:17]} 31. Qf2 {[%clk 0:00:04]}  Re5 {[%clk 0:00:15]} 32. c5 {[%clk 0:00:01]}  Bxc5 {[%clk 0:00:15]} 0-1


[Site "https://www.chess.com"]

[Event "Titled Tuesday Blitz January 31 Late 2023"]
[White "Alfaro, William"]
[Black "Defend, Balint"]
[WhiteFideId "6100457"]
[BlackFideId "17004853"]
[WhiteElo "2134"]
[BlackElo "1673"]
[Result "0-1"]
[Round "02"]
[TimeControl "180+2"]
[Date "2023.01.31"]
[WhiteClock "0:01:48"]
[BlackClock "0:01:32"]

1. e4 {[%clk 0:03:00]}  c5 {[%clk 0:02:55]} 2. Nf3 {[%clk 0:02:56]}  d6 {[%clk 0:02:55]} 3. d4 {[%clk 0:02:53]}  cxd4 {[%clk 0:02:55]} 4. Nxd4 {[%clk 0:02:53]}  Nf6 {[%clk 0:02:55]} 5. Nc3 {[%clk 0:02:52]}  a6 {[%clk 0:02:56]} 6. Bg5 {[%clk 0:02:50]}  e6 {[%clk 0:02:55]} 7. f4 {[%clk 0:02:50]}  Qb6 {[%clk 0:02:54]} 8. Qd2 {[%clk 0:02:45]}  Qxb2 {[%clk 0:02:52]} 9. Rb1 {[%clk 0:02:44]}  Qa3 {[%clk 0:02:50]} 10. e5 {[%clk 0:02:27]}  h6 {[%clk 0:02:42]} 11. Bh4 {[%clk 0:02:16]}  dxe5 {[%clk 0:02:42]} 12. fxe5 {[%clk 0:02:15]}  Nfd7 {[%clk 0:02:42]} 13. Bg3 {[%clk 0:02:09]}  Qa5 {[%clk 0:02:09]} 14. Bd3 {[%clk 0:02:07]}  Nxe5 {[%clk 0:01:53]} 15. O-O {[%clk 0:02:06]}  Nxd3 {[%clk 0:01:51]} 16. Qxd3 {[%clk 0:02:06]}  Bc5 {[%clk 0:01:47]} 17. Kh1 {[%clk 0:02:05]}  Bxd4 {[%clk 0:01:38]} 18. Qxd4 {[%clk 0:02:01]}  O-O {[%clk 0:01:38]} 19. Be5 {[%clk 0:01:58]}  Nc6 {[%clk 0:01:37]} 20. Qe4 {[%clk 0:01:48]}  Qxe5 {[%clk 0:01:32]} 0-1


[Site "https://www.chess.com"]

[Event "Titled Tuesday Blitz January 31 Late 2023"]
[White "Sohal, Tanraj"]
[Black "Onslow, Alfie"]
[WhiteFideId "2608499"]
[BlackFideId "436976"]
[WhiteElo "2234"]
[BlackElo "2157"]
[Result "1-0"]
[Round "02"]
[TimeControl "180+2"]
[Date "2023.01.31"]
[WhiteClock "0:01:05"]
[BlackClock "0:00:01"]

1. d4 {[%clk 0:03:00]}  d5 {[%clk 0:02:57]} 2. c4 {[%clk 0:02:55]}  e6 {[%clk 0:02:58]} 3. Nc3 {[%clk 0:02:55]}  c6 {[%clk 0:02:55]} 4. e3 {[%clk 0:02:54]}  f5 {[%clk 0:02:53]} 5. Nf3 {[%clk 0:02:53]}  Nf6 {[%clk 0:02:53]} 6. Bd3 {[%clk 0:02:54]}  Bd6 {[%clk 0:02:52]} 7. O-O {[%clk 0:02:54]}  O-O {[%clk 0:02:52]} 8. b3 {[%clk 0:02:55]}  Nbd7 {[%clk 0:02:50]} 9. Bb2 {[%clk 0:02:54]}  Ne4 {[%clk 0:02:46]} 10. Ne2 {[%clk 0:02:53]}  b6 {[%clk 0:02:31]} 11. Nd2 {[%clk 0:02:53]}  Bb7 {[%clk 0:02:27]} 12. f3 {[%clk 0:02:51]}  Qg5 {[%clk 0:02:16]} 13. f4 {[%clk 0:02:35]}  Qh6 {[%clk 0:02:09]} 14. Rf3 {[%clk 0:02:34]}  Ndf6 {[%clk 0:02:06]} 15. Rh3 {[%clk 0:02:33]}  Qg6 {[%clk 0:02:00]} 16. Nf3 {[%clk 0:02:31]}  Ng4 {[%clk 0:01:58]} 17. Bxe4 {[%clk 0:02:23]}  dxe4 {[%clk 0:01:56]} 18. Ne5 {[%clk 0:02:19]}  Bxe5 {[%clk 0:01:43]} 19. fxe5 {[%clk 0:02:16]}  Rad8 {[%clk 0:01:33]} 20. Nf4 {[%clk 0:02:16]}  Qf7 {[%clk 0:01:33]} 21. Qe2 {[%clk 0:02:15]}  c5 {[%clk 0:01:12]} 22. Rh4 {[%clk 0:01:53]}  cxd4 {[%clk 0:00:54]} 23. exd4 {[%clk 0:01:51]}  Qe7 {[%clk 0:00:28]} 24. Rxg4 {[%clk 0:01:50]}  fxg4 {[%clk 0:00:28]} 25. Qxg4 {[%clk 0:01:51]}  Bc8 {[%clk 0:00:21]} 26. Re1 {[%clk 0:01:47]}  Qb4 {[%clk 0:00:14]} 27. Rxe4 {[%clk 0:01:43]}  Qd2 {[%clk 0:00:14]} 28. Qe2 {[%clk 0:01:42]}  Qxe2 {[%clk 0:00:11]} 29. Nxe2 {[%clk 0:01:42]}  Bb7 {[%clk 0:00:11]} 30. Rf4 {[%clk 0:01:42]}  Rxf4 {[%clk 0:00:11]} 31. Nxf4 {[%clk 0:01:43]}  Kf7 {[%clk 0:00:12]} 32. Kf2 {[%clk 0:01:43]}  g5 {[%clk 0:00:12]} 33. Nh5 {[%clk 0:01:43]}  Kg6 {[%clk 0:00:12]} 34. Nf6 {[%clk 0:01:43]}  h5 {[%clk 0:00:11]} 35. g3 {[%clk 0:01:44]}  h4 {[%clk 0:00:10]} 36. Bc3 {[%clk 0:01:42]}  Kf5 {[%clk 0:00:10]} 37. g4+ {[%clk 0:01:40]}  Kg6 {[%clk 0:00:08]} 38. h3 {[%clk 0:01:40]}  Rf8 {[%clk 0:00:07]} 39. Kg1 {[%clk 0:01:36]}  Rd8 {[%clk 0:00:07]} 40. Kf2 {[%clk 0:01:30]}  a6 {[%clk 0:00:07]} 41. a4 {[%clk 0:01:30]}  b5 {[%clk 0:00:07]} 42. axb5 {[%clk 0:01:30]}  axb5 {[%clk 0:00:07]} 43. cxb5 {[%clk 0:01:30]}  Rb8 {[%clk 0:00:06]} 44. Nd7 {[%clk 0:01:25]}  Ra8 {[%clk 0:00:04]} 45. Nc5 {[%clk 0:01:15]}  Ra2+ {[%clk 0:00:05]} 46. Ke3 {[%clk 0:01:13]}  Bd5 {[%clk 0:00:05]} 47. b6 {[%clk 0:01:13]}  Rh2 {[%clk 0:00:05]} 48. b7 {[%clk 0:01:13]}  Bxb7 {[%clk 0:00:06]} 49. Nxb7 {[%clk 0:01:13]}  Rxh3+ {[%clk 0:00:06]} 50. Kd2 {[%clk 0:01:14]}  Rg3 {[%clk 0:00:06]} 51. d5 {[%clk 0:01:08]}  exd5 {[%clk 0:00:04]} 52. e6 {[%clk 0:01:09]}  h3 {[%clk 0:00:04]} 53. Nd6 {[%clk 0:01:05]}  h2 {[%clk 0:00:03]} 54. e7 {[%clk 0:01:05]}  h1=Q {[%clk 0:00:02]} 55. e8=Q+ {[%clk 0:01:05]}  Kh7 {[%clk 0:00:02]} 56. Qh8+ {[%clk 0:01:04]}  Kg6 {[%clk 0:00:01]} 57. Qg7# {[%clk 0:01:05]} 1-0


[Site "https://www.chess.com"]

[Event "Titled Tuesday Blitz January 31 Late 2023"]
[White "Rose, Felix"]
[Black "Winterberg, Lukas"]
[WhiteFideId "5105722"]
[BlackFideId "24622702"]
[WhiteElo "2091"]
[BlackElo "2402"]
[Result "0-1"]
[Round "02"]
[TimeControl "180+2"]
[Date "2023.01.31"]
[WhiteClock "0:00:01"]
[BlackClock "0:00:28"]

1. d4 {[%clk 0:03:00]}  Nf6 {[%clk 0:02:57]} 2. Bf4 {[%clk 0:03:00]}  d5 {[%clk 0:02:57]} 3. e3 {[%clk 0:02:58]}  c5 {[%clk 0:02:57]} 4. Nf3 {[%clk 0:02:58]}  Nc6 {[%clk 0:02:57]} 5. Nbd2 {[%clk 0:02:56]}  cxd4 {[%clk 0:02:57]} 6. exd4 {[%clk 0:02:56]}  Bf5 {[%clk 0:02:56]} 7. c3 {[%clk 0:02:54]}  e6 {[%clk 0:02:55]} 8. Bb5 {[%clk 0:02:53]}  Qb6 {[%clk 0:02:53]} 9. Qa4 {[%clk 0:02:52]}  Be7 {[%clk 0:02:48]} 10. Ne5 {[%clk 0:02:51]}  Rc8 {[%clk 0:02:47]} 11. O-O {[%clk 0:02:37]}  O-O {[%clk 0:02:47]} 12. Nxc6 {[%clk 0:02:26]}  bxc6 {[%clk 0:02:47]} 13. Ba6 {[%clk 0:02:27]}  Rcd8 {[%clk 0:02:42]} 14. b4 {[%clk 0:02:26]}  h6 {[%clk 0:02:42]} 15. h3 {[%clk 0:02:21]}  Ne4 {[%clk 0:02:39]} 16. Nxe4 {[%clk 0:02:20]}  Bxe4 {[%clk 0:02:40]} 17. Rfe1 {[%clk 0:02:08]}  g5 {[%clk 0:02:10]} 18. Be5 {[%clk 0:02:05]}  f6 {[%clk 0:02:02]} 19. Bh2 {[%clk 0:02:04]}  Kf7 {[%clk 0:02:02]} 20. f3 {[%clk 0:02:03]}  Bf5 {[%clk 0:02:00]} 21. Re2 {[%clk 0:02:01]}  Bd6 {[%clk 0:01:59]} 22. Rae1 {[%clk 0:01:56]}  Bxh2+ {[%clk 0:01:57]} 23. Kxh2 {[%clk 0:01:57]}  Rde8 {[%clk 0:01:57]} 24. g4 {[%clk 0:01:55]}  Bg6 {[%clk 0:01:56]} 25. b5 {[%clk 0:01:38]}  c5 {[%clk 0:01:51]} 26. dxc5 {[%clk 0:01:31]}  Qxc5 {[%clk 0:01:52]} 27. Qd4 {[%clk 0:01:29]}  Qd6+ {[%clk 0:01:50]} 28. Kg2 {[%clk 0:01:25]}  Re7 {[%clk 0:01:48]} 29. c4 {[%clk 0:01:20]}  Rd8 {[%clk 0:01:46]} 30. c5 {[%clk 0:01:18]}  Qb8 {[%clk 0:01:42]} 31. c6 {[%clk 0:01:14]}  e5 {[%clk 0:01:42]} 32. Qc5 {[%clk 0:01:13]}  d4 {[%clk 0:01:36]} 33. Rd2 {[%clk 0:00:50]}  Qb6 {[%clk 0:01:26]} 34. Qxb6 {[%clk 0:00:47]}  axb6 {[%clk 0:01:27]} 35. Rc1 {[%clk 0:00:45]}  Rc7 {[%clk 0:01:27]} 36. a4 {[%clk 0:00:44]}  Ke6 {[%clk 0:01:20]} 37. a5 {[%clk 0:00:38]}  Rb8 {[%clk 0:01:21]} 38. Bb7 {[%clk 0:00:37]}  bxa5 {[%clk 0:01:16]} 39. b6 {[%clk 0:00:33]}  Rbxb7 {[%clk 0:01:16]} 40. cxb7 {[%clk 0:00:27]}  Rxb7 {[%clk 0:01:17]} 41. Ra2 {[%clk 0:00:24]}  Rxb6 {[%clk 0:01:16]} 42. Rxa5 {[%clk 0:00:24]}  Be8 {[%clk 0:01:09]} 43. Ra7 {[%clk 0:00:21]}  Bc6 {[%clk 0:01:07]} 44. Rca1 {[%clk 0:00:20]}  Rb2+ {[%clk 0:01:03]} 45. Kg3 {[%clk 0:00:20]}  Rb3 {[%clk 0:00:58]} 46. R1a3 {[%clk 0:00:19]}  Rxa3 {[%clk 0:00:51]} 47. Rxa3 {[%clk 0:00:18]}  Kd5 {[%clk 0:00:52]} 48. Kf2 {[%clk 0:00:18]}  Kc5 {[%clk 0:00:48]} 49. Ra7 {[%clk 0:00:17]}  e4 {[%clk 0:00:44]} 50. fxe4 {[%clk 0:00:16]}  Bxe4 {[%clk 0:00:45]} 51. Rf7 {[%clk 0:00:15]}  f5 {[%clk 0:00:44]} 52. gxf5 {[%clk 0:00:15]}  Kd6 {[%clk 0:00:45]} 53. Rf8 {[%clk 0:00:13]}  Ke5 {[%clk 0:00:43]} 54. f6 {[%clk 0:00:13]}  Bg6 {[%clk 0:00:43]} 55. Ke2 {[%clk 0:00:11]}  h5 {[%clk 0:00:41]} 56. Kd2 {[%clk 0:00:09]}  Ke6 {[%clk 0:00:40]} 57. Rd8 {[%clk 0:00:08]}  d3 {[%clk 0:00:37]} 58. Ke3 {[%clk 0:00:05]}  Kxf6 {[%clk 0:00:36]} 59. Rd5 {[%clk 0:00:06]}  Bf5 {[%clk 0:00:36]} 60. Ra5 {[%clk 0:00:04]}  h4 {[%clk 0:00:34]} 61. Rc5 {[%clk 0:00:02]}  Kg6 {[%clk 0:00:32]} 62. Ra5 {[%clk 0:00:02]}  Bxh3 {[%clk 0:00:30]} 63. Kxd3 {[%clk 0:00:02]}  Kh5 {[%clk 0:00:28]} 64. Ke3 {[%clk 0:00:03]}  Bd7 {[%clk 0:00:28]} 65. Kf3 {[%clk 0:00:02]}  Bc6+ {[%clk 0:00:28]} 66. Kf2 {[%clk 0:00:03]}  Kg4 {[%clk 0:00:28]} 67. Rc5 {[%clk 0:00:01]}  Be4 {[%clk 0:00:27]} 68. Rc4 {[%clk 0:00:02]}  Kf4 {[%clk 0:00:27]} 69. Rb4 {[%clk 0:00:02]}  g4 {[%clk 0:00:27]} 70. Kg1 {[%clk 0:00:02]}  g3 {[%clk 0:00:28]} 71. Rd4 {[%clk 0:00:01]}  h3 {[%clk 0:00:28]} 0-1


[Site "https://www.chess.com"]

[Event "Titled Tuesday Blitz January 31 Late 2023"]
[White "Koutlas, Nikolaos"]
[Black "Adury, Anant"]
[WhiteFideId "25827138"]
[BlackFideId "30964687"]
[WhiteElo "2341"]
[BlackElo "2123"]
[Result "1-0"]
[Round "02"]
[TimeControl "180+2"]
[Date "2023.01.31"]
[WhiteClock "0:00:06"]
[BlackClock "0:00:31"]

1. Nf3 {[%clk 0:03:00]}  g6 {[%clk 0:03:00]} 2. g3 {[%clk 0:03:01]}  Bg7 {[%clk 0:02:57]} 3. Bg2 {[%clk 0:03:02]}  e5 {[%clk 0:02:57]} 4. d3 {[%clk 0:02:57]}  Nc6 {[%clk 0:02:57]} 5. O-O {[%clk 0:02:58]}  Nge7 {[%clk 0:02:57]} 6. c4 {[%clk 0:02:58]}  d5 {[%clk 0:02:57]} 7. cxd5 {[%clk 0:02:57]}  Nxd5 {[%clk 0:02:57]} 8. a3 {[%clk 0:02:52]}  O-O {[%clk 0:02:57]} 9. Bg5 {[%clk 0:02:36]}  Qd6 {[%clk 0:02:53]} 10. Qd2 {[%clk 0:02:34]}  Be6 {[%clk 0:02:50]} 11. Bh6 {[%clk 0:02:32]}  Rfd8 {[%clk 0:02:50]} 12. Bxg7 {[%clk 0:02:31]}  Kxg7 {[%clk 0:02:51]} 13. Rd1 {[%clk 0:02:25]}  Nd4 {[%clk 0:02:45]} 14. Nxd4 {[%clk 0:02:17]}  exd4 {[%clk 0:02:45]} 15. h4 {[%clk 0:02:10]}  h5 {[%clk 0:02:32]} 16. Qg5 {[%clk 0:02:07]}  c5 {[%clk 0:02:31]} 17. Nd2 {[%clk 0:02:06]}  Qe7 {[%clk 0:02:27]} 18. Qxe7 {[%clk 0:01:59]}  Nxe7 {[%clk 0:02:22]} 19. Rdc1 {[%clk 0:01:57]}  Rac8 {[%clk 0:02:14]} 20. Bxb7 {[%clk 0:01:51]}  Rb8 {[%clk 0:02:14]} 21. Bf3 {[%clk 0:01:47]}  Rxb2 {[%clk 0:02:13]} 22. Ne4 {[%clk 0:01:48]}  c4 {[%clk 0:02:07]} 23. dxc4 {[%clk 0:01:46]}  d3 {[%clk 0:02:08]} 24. exd3 {[%clk 0:01:41]}  Rxd3 {[%clk 0:02:09]} 25. Bg2 {[%clk 0:01:37]}  Nf5 {[%clk 0:01:56]} 26. Nc5 {[%clk 0:01:34]}  Rdd2 {[%clk 0:01:56]} 27. Ne4 {[%clk 0:01:27]}  Re2 {[%clk 0:01:55]} 28. Bf3 {[%clk 0:01:27]}  Rec2 {[%clk 0:01:35]} 29. c5 {[%clk 0:01:20]}  Nd4 {[%clk 0:01:33]} 30. Bd1 {[%clk 0:01:20]}  Rxc1 {[%clk 0:01:17]} 31. Rxc1 {[%clk 0:01:18]}  Bd5 {[%clk 0:01:18]} 32. Nc3 {[%clk 0:01:02]}  Bc6 {[%clk 0:01:18]} 33. Kf1 {[%clk 0:00:59]}  Nb3 {[%clk 0:01:11]} 34. Bxb3 {[%clk 0:00:40]}  Rxb3 {[%clk 0:01:12]} 35. a4 {[%clk 0:00:37]}  Kf6 {[%clk 0:00:48]} 36. Nb5 {[%clk 0:00:31]}  Bxb5+ {[%clk 0:00:47]} 37. axb5 {[%clk 0:00:31]}  Rxb5 {[%clk 0:00:48]} 38. Ke2 {[%clk 0:00:31]}  Ke6 {[%clk 0:00:46]} 39. Kd3 {[%clk 0:00:30]}  Kd5 {[%clk 0:00:41]} 40. c6 {[%clk 0:00:30]}  Rb3+ {[%clk 0:00:42]} 41. Ke2 {[%clk 0:00:26]}  Rb8 {[%clk 0:00:40]} 42. Ra1 {[%clk 0:00:25]}  Ra8 {[%clk 0:00:39]} 43. c7 {[%clk 0:00:24]}  Kd6 {[%clk 0:00:33]} 44. Rxa7 {[%clk 0:00:23]}  Rc8 {[%clk 0:00:31]} 45. Ke3 {[%clk 0:00:22]}  Rxc7 {[%clk 0:00:32]} 46. Rxc7 {[%clk 0:00:16]}  Kxc7 {[%clk 0:00:32]} 47. Kf4 {[%clk 0:00:16]}  Kd6 {[%clk 0:00:32]} 48. Kg5 {[%clk 0:00:16]}  Ke5 {[%clk 0:00:32]} 49. Kh6 {[%clk 0:00:16]}  Kf5 {[%clk 0:00:31]} 50. Kg7 {[%clk 0:00:15]}  f6 {[%clk 0:00:31]} 51. Kh6 {[%clk 0:00:06]} 1-0


[Site "https://www.chess.com"]

[Event "Titled Tuesday Blitz January 31 Late 2023"]
[White "Gardezi, Arsal"]
[Black "Carbone, Diego"]
[WhiteFideId "30949521"]
[BlackFideId "3002179"]
[WhiteElo "2093"]
[BlackElo "2336"]
[Result "1-0"]
[Round "02"]
[TimeControl "180+2"]
[Date "2023.01.31"]
[WhiteClock "0:00:18"]
[BlackClock "0:00:04"]

1. d4 {[%clk 0:03:00]}  Nf6 {[%clk 0:02:59]} 2. c4 {[%clk 0:03:00]}  e6 {[%clk 0:02:59]} 3. Nc3 {[%clk 0:03:01]}  d5 {[%clk 0:03:00]} 4. cxd5 {[%clk 0:03:01]}  exd5 {[%clk 0:03:01]} 5. Nf3 {[%clk 0:03:01]}  c6 {[%clk 0:02:59]} 6. Bf4 {[%clk 0:03:01]}  Bd6 {[%clk 0:02:56]} 7. Bg3 {[%clk 0:02:59]}  O-O {[%clk 0:02:53]} 8. e3 {[%clk 0:02:59]}  Bf5 {[%clk 0:02:52]} 9. Bd3 {[%clk 0:02:57]}  Bxd3 {[%clk 0:02:46]} 10. Qxd3 {[%clk 0:02:56]}  Re8 {[%clk 0:02:47]} 11. O-O {[%clk 0:02:52]}  Bxg3 {[%clk 0:02:43]} 12. hxg3 {[%clk 0:02:52]}  Ne4 {[%clk 0:02:43]} 13. Ne5 {[%clk 0:02:37]}  f6 {[%clk 0:02:33]} 14. Nxe4 {[%clk 0:02:37]}  fxe5 {[%clk 0:02:29]} 15. Nc5 {[%clk 0:02:37]}  e4 {[%clk 0:02:29]} 16. Qa3 {[%clk 0:02:21]}  b6 {[%clk 0:01:40]} 17. Nb7 {[%clk 0:02:09]}  Qd7 {[%clk 0:01:29]} 18. Nd6 {[%clk 0:02:05]}  Re6 {[%clk 0:01:26]} 19. Nf5 {[%clk 0:02:03]}  Rf6 {[%clk 0:01:20]} 20. g4 {[%clk 0:02:00]}  g6 {[%clk 0:01:16]} 21. Nh6+ {[%clk 0:01:49]}  Kg7 {[%clk 0:01:13]} 22. g5 {[%clk 0:01:49]}  Rf8 {[%clk 0:01:10]} 23. f3 {[%clk 0:01:26]}  exf3 {[%clk 0:01:09]} 24. Qxf8+ {[%clk 0:01:15]}  Kxf8 {[%clk 0:01:09]} 25. Rxf3+ {[%clk 0:01:15]}  Ke8 {[%clk 0:01:07]} 26. Raf1 {[%clk 0:01:14]}  Qd6 {[%clk 0:00:54]} 27. Rf6 {[%clk 0:00:43]}  Qe7 {[%clk 0:00:27]} 28. Ng8 {[%clk 0:00:17]}  Qg7 {[%clk 0:00:10]} 29. Re6+ {[%clk 0:00:16]}  Kd8 {[%clk 0:00:08]} 30. Nf6 {[%clk 0:00:16]}  Kc7 {[%clk 0:00:04]} 31. Ne8+ {[%clk 0:00:16]}  Kd7 {[%clk 0:00:04]} 32. Nxg7 {[%clk 0:00:17]}  Na6 {[%clk 0:00:04]} 33. Rf7+ {[%clk 0:00:17]}  Kd8 {[%clk 0:00:04]} 34. Re8# {[%clk 0:00:18]} 1-0


[Site "https://www.chess.com"]

[Event "Titled Tuesday Blitz January 31 Late 2023"]
[White "Stavri, Gligor"]
[Black "Ekdyshman, Mikhail"]
[WhiteFideId "4706013"]
[BlackFideId "4149416"]
[WhiteElo "1867"]
[BlackElo "2264"]
[Result "0-1"]
[Round "02"]
[TimeControl "180+2"]
[Date "2023.01.31"]
[WhiteClock "0:00:06"]
[BlackClock "0:00:11"]

1. d4 {[%clk 0:03:00]}  Nf6 {[%clk 0:02:59]} 2. c4 {[%clk 0:03:01]}  c5 {[%clk 0:02:59]} 3. d5 {[%clk 0:03:01]}  b5 {[%clk 0:02:59]} 4. cxb5 {[%clk 0:03:01]}  a6 {[%clk 0:03:00]} 5. bxa6 {[%clk 0:03:02]}  Bxa6 {[%clk 0:02:59]} 6. Nc3 {[%clk 0:03:02]}  d6 {[%clk 0:03:00]} 7. Nf3 {[%clk 0:03:02]}  g6 {[%clk 0:03:00]} 8. e4 {[%clk 0:03:02]}  Bxf1 {[%clk 0:03:00]} 9. Kxf1 {[%clk 0:03:03]}  Qc8 {[%clk 0:02:59]} 10. h3 {[%clk 0:02:57]}  Bg7 {[%clk 0:02:59]} 11. Kg1 {[%clk 0:02:57]}  O-O {[%clk 0:02:59]} 12. Kh2 {[%clk 0:02:57]}  Qb7 {[%clk 0:02:57]} 13. Re1 {[%clk 0:02:57]}  Nbd7 {[%clk 0:02:56]} 14. Re2 {[%clk 0:02:57]}  Ne8 {[%clk 0:02:56]} 15. Rc2 {[%clk 0:02:57]}  Nc7 {[%clk 0:02:54]} 16. Qe2 {[%clk 0:02:51]}  e6 {[%clk 0:02:48]} 17. dxe6 {[%clk 0:02:49]}  fxe6 {[%clk 0:02:44]} 18. Bg5 {[%clk 0:02:38]}  Rf7 {[%clk 0:02:36]} 19. Rd1 {[%clk 0:02:32]}  d5 {[%clk 0:02:25]} 20. exd5 {[%clk 0:02:32]}  exd5 {[%clk 0:02:24]} 21. Bh4 {[%clk 0:01:47]}  Re8 {[%clk 0:02:22]} 22. Qf1 {[%clk 0:01:35]}  d4 {[%clk 0:02:16]} 23. Ng5 {[%clk 0:01:35]}  Rf5 {[%clk 0:01:55]} 24. Qc4+ {[%clk 0:01:31]}  Nd5 {[%clk 0:01:48]} 25. Nce4 {[%clk 0:01:17]}  h6 {[%clk 0:01:36]} 26. Bg3 {[%clk 0:00:53]}  hxg5 {[%clk 0:01:00]} 27. Nd6 {[%clk 0:00:53]}  Qa8 {[%clk 0:00:56]} 28. Nxe8 {[%clk 0:00:52]}  Qxe8 {[%clk 0:00:55]} 29. Re2 {[%clk 0:00:52]}  Qf7 {[%clk 0:00:53]} 30. Rde1 {[%clk 0:00:50]}  Nf4 {[%clk 0:00:44]} 31. Re8+ {[%clk 0:00:41]}  Kh7 {[%clk 0:00:38]} 32. Qxf7 {[%clk 0:00:34]}  Rxf7 {[%clk 0:00:38]} 33. a4 {[%clk 0:00:32]}  Nd3 {[%clk 0:00:34]} 34. R1e7 {[%clk 0:00:30]}  Rxe7 {[%clk 0:00:14]} 35. Rxe7 {[%clk 0:00:31]}  Nb6 {[%clk 0:00:10]} 36. a5 {[%clk 0:00:32]}  Nc8 {[%clk 0:00:10]} 37. Rc7 {[%clk 0:00:31]}  Nb4 {[%clk 0:00:09]} 38. Rxc8 {[%clk 0:00:30]}  d3 {[%clk 0:00:09]} 39. Rd8 {[%clk 0:00:24]}  Bd4 {[%clk 0:00:09]} 40. a6 {[%clk 0:00:15]}  Nxa6 {[%clk 0:00:09]} 41. Ra8 {[%clk 0:00:04]}  Nb4 {[%clk 0:00:09]} 42. Ra1 {[%clk 0:00:04]}  Bxb2 {[%clk 0:00:09]} 43. Rd1 {[%clk 0:00:04]}  Bc3 {[%clk 0:00:08]} 44. f4 {[%clk 0:00:05]}  d2 {[%clk 0:00:06]} 45. fxg5 {[%clk 0:00:04]}  Nd3 {[%clk 0:00:07]} 46. Rf1 {[%clk 0:00:02]}  Ne1 {[%clk 0:00:05]} 47. Rxe1 {[%clk 0:00:01]}  dxe1=Q {[%clk 0:00:06]} 48. Bxe1 {[%clk 0:00:01]}  Bxe1 {[%clk 0:00:06]} 49. Kg1 {[%clk 0:00:02]}  Bh4 {[%clk 0:00:06]} 50. Kf1 {[%clk 0:00:03]}  Bxg5 {[%clk 0:00:07]} 51. Ke2 {[%clk 0:00:03]}  Bf6 {[%clk 0:00:07]} 52. Kd3 {[%clk 0:00:04]}  Bd4 {[%clk 0:00:08]} 53. Kc4 {[%clk 0:00:05]}  Kh6 {[%clk 0:00:08]} 54. Kd5 {[%clk 0:00:05]}  Kg5 {[%clk 0:00:09]} 55. g3 {[%clk 0:00:06]}  Kf5 {[%clk 0:00:09]} 56. Kc4 {[%clk 0:00:05]}  Ke4 {[%clk 0:00:09]} 57. g4 {[%clk 0:00:05]}  Kf4 {[%clk 0:00:09]} 58. Kd5 {[%clk 0:00:06]}  Kg5 {[%clk 0:00:10]} 59. Ke6 {[%clk 0:00:06]}  c4 {[%clk 0:00:10]} 60. Kd5 {[%clk 0:00:06]}  c3 {[%clk 0:00:11]} 0-1


[Site "https://www.chess.com"]